[Event "Early-Titled-Tuesday-Blitz-February-13-2024"]
[Site "Chess.com"]
[Date "2024.02.13"]
[Round "3"]
[White "semchik73"]
[Black "Austen48"]
[Result "1-0"]
[WhiteElo "2432"]
[BlackElo "2207"]
[TimeControl "180+1"]
[EndTime "8:32:27 PST"]
[Termination "semchik73 won by resignation"]

1. Nf3 {[%clk 0:03:00.3]} 1... Nf6 {[%clk 0:02:57.2]} 2. c4 {[%clk 0:03:00.7]}
2... c6 {[%clk 0:02:52]} 3. Nc3 {[%clk 0:03:00.1]} 3... d5 {[%clk 0:02:52.1]} 4.
e3 {[%clk 0:03:00.7]} 4... e6 {[%clk 0:02:47.1]} 5. d4 {[%clk 0:03:00.4]} 5...
Bd6 {[%clk 0:02:45.6]} 6. Bd3 {[%clk 0:03:00.7]} 6... O-O {[%clk 0:02:45.8]} 7.
O-O {[%clk 0:03:00.9]} 7... Nbd7 {[%clk 0:02:44.5]} 8. e4 {[%clk 0:03:01.3]}
8... dxe4 {[%clk 0:02:44.4]} 9. Nxe4 {[%clk 0:03:01.6]} 9... Nxe4 {[%clk
0:02:44.5]} 10. Bxe4 {[%clk 0:03:02.2]} 10... Nf6 {[%clk 0:02:38.4]} 11. Bc2
{[%clk 0:03:02.2]} 11... c5 {[%clk 0:02:38.2]} 12. Qd3 {[%clk 0:03:01.9]} 12...
cxd4 {[%clk 0:02:34.8]} 13. Bg5 {[%clk 0:03:01.9]} 13... g6 {[%clk 0:02:25.8]}
14. Qxd4 {[%clk 0:03:01.8]} 14... Be7 {[%clk 0:02:25.8]} 15. Qh4 {[%clk
0:02:59.2]} 15... e5 {[%clk 0:02:07.6]} 16. Rfd1 {[%clk 0:02:57.7]} 16... Qb6
{[%clk 0:02:06.7]} 17. Nxe5 {[%clk 0:02:51.8]} 17... Re8 {[%clk 0:01:55.5]} 18.
c5 {[%clk 0:02:49.4]} 18... Qxc5 {[%clk 0:01:19.9]} 19. Bxf6 {[%clk 0:02:40.5]}
19... Bxf6 {[%clk 0:01:18.7]} 20. Qxf6 {[%clk 0:02:40.8]} 20... Qxe5 {[%clk
0:01:18.2]} 21. Qxe5 {[%clk 0:02:39.1]} 21... Rxe5 {[%clk 0:01:18.3]} 22. Rd8+
{[%clk 0:02:39.8]} 22... Kg7 {[%clk 0:01:18.4]} 23. Bb3 {[%clk 0:02:38]} 23...
Rc5 {[%clk 0:01:14]} 24. h3 {[%clk 0:02:33.6]} 24... a5 {[%clk 0:01:13.5]} 25.
a4 {[%clk 0:02:28.1]} 25... Ra6 {[%clk 0:01:10.3]} 26. Re1 {[%clk 0:02:25.1]}
26... Rb6 {[%clk 0:01:02.7]} 27. Bd5 {[%clk 0:02:23.1]} 27... Rxb2 {[%clk
0:00:48.5]} 28. Re7 {[%clk 0:02:22.8]} 28... Rc1+ {[%clk 0:00:46.3]} 29. Kh2
{[%clk 0:02:22.9]} 29... Rxf2 {[%clk 0:00:43.4]} 30. Kg3 {[%clk 0:02:21.1]}
30... Rf5 {[%clk 0:00:38.7]} 31. Be4 {[%clk 0:02:20.5]} 31... Rc3+ {[%clk
0:00:35.6]} 32. Kh2 {[%clk 0:02:19.5]} 32... Rf2 {[%clk 0:00:28.7]} 33. Bd5
{[%clk 0:02:16.2]} 33... b6 {[%clk 0:00:25]} 34. Kg1 {[%clk 0:02:06.3]} 34...
Rf5 {[%clk 0:00:23.6]} 35. Be4 {[%clk 0:02:03.5]} 35... Rf6 {[%clk 0:00:20.4]}
36. Bd5 {[%clk 0:01:42.7]} 36... Be6 {[%clk 0:00:20.1]} 37. Be4 {[%clk
0:01:33.6]} 37... Rc1+ {[%clk 0:00:19.5]} 38. Kh2 {[%clk 0:01:33.4]} 38... Bb3
{[%clk 0:00:18.9]} 39. Rb8 {[%clk 0:01:28.5]} 39... Bxa4 {[%clk 0:00:17.4]} 40.
Bd5 {[%clk 0:01:28.9]} 40... Bc6 {[%clk 0:00:16]} 41. Rc8 {[%clk 0:01:27.8]}
41... Rc5 {[%clk 0:00:14.7]} 42. Bxc6 {[%clk 0:01:21.2]} 42... Rcxc6 {[%clk
0:00:14.2]} 43. Rb8 {[%clk 0:01:21.4]} 43... Rfd6 {[%clk 0:00:13.8]} 44. Rbb7
{[%clk 0:01:21.4]} 44... Rf6 {[%clk 0:00:13.2]} 45. Re8 {[%clk 0:01:22.1]} 45...
h5 {[%clk 0:00:12.9]} 46. Rbb8 {[%clk 0:01:18]} 46... Rf2 {[%clk 0:00:11.4]} 47.
Rg8+ {[%clk 0:01:16.4]} 47... Kf6 {[%clk 0:00:10.7]} 48. Rgd8 {[%clk 0:01:14.8]}
48... Ke6 {[%clk 0:00:08]} 49. Re8+ {[%clk 0:01:14.4]} 49... Kd5 {[%clk
0:00:07.6]} 50. Kg1 {[%clk 0:01:13.5]} 50... Rd2 {[%clk 0:00:05.9]} 51. Red8+
{[%clk 0:01:13.1]} 51... Rd6 {[%clk 0:00:06.3]} 52. Rxd6+ {[%clk 0:01:12.9]}
52... Kxd6 {[%clk 0:00:06.5]} 53. Rd8+ {[%clk 0:01:13.6]} 53... Kc5 {[%clk
0:00:06.8]} 54. Rxd2 {[%clk 0:01:14.3]} 54... b5 {[%clk 0:00:07]} 55. Kf2 {[%clk
0:01:11.6]} 55... b4 {[%clk 0:00:06.7]} 56. Ke3 {[%clk 0:01:11.5]} 56... a4
{[%clk 0:00:07.2]} 57. Kd3 {[%clk 0:01:11.7]} 57... f5 {[%clk 0:00:06.5]} 58.
Re2 {[%clk 0:01:06.4]} 58... Kd5 {[%clk 0:00:06.3]} 59. Re8 {[%clk 0:01:06.1]}
59... a3 {[%clk 0:00:05.4]} 60. Kc2 {[%clk 0:01:05.1]} 60... g5 {[%clk
0:00:04.6]} 61. Rh8 {[%clk 0:01:01.5]} 61... h4 {[%clk 0:00:03.5]} 62. Rg8
{[%clk 0:01:00.6]} 62... Kc4 {[%clk 0:00:03.7]} 63. Rc8+ {[%clk 0:01:00.4]}
63... Kd4 {[%clk 0:00:04]} 64. Kb3 {[%clk 0:01:00.7]} 64... g4 {[%clk 0:00:03]}
65. hxg4 {[%clk 0:01:00.3]} 65... fxg4 {[%clk 0:00:03.6]} 66. Rc4+ {[%clk
0:01:00.5]} 66... Ke3 {[%clk 0:00:01.7]} 67. Rxg4 {[%clk 0:01:00.3]} 1-0

[Event "Early-Titled-Tuesday-Blitz-February-13-2024"]
[Site "Chess.com"]
[Date "2024.02.13"]
[Round "3"]
[White "lupta_robin"]
[Black "Abund"]
[Result "0-1"]
[WhiteElo "2554"]
[BlackElo "2763"]
[TimeControl "180+1"]
[EndTime "8:32:30 PST"]
[Termination "Abund won by resignation"]

1. b3 {[%clk 0:03:00.9]} 1... d5 {[%clk 0:02:55.9]} 2. Bb2 {[%clk 0:03:01.1]}
2... c5 {[%clk 0:02:56.2]} 3. e3 {[%clk 0:03:00.9]} 3... Nf6 {[%clk 0:02:56]} 4.
Bb5+ {[%clk 0:03:00.5]} 4... Nbd7 {[%clk 0:02:54.8]} 5. Nf3 {[%clk 0:03:00.1]}
5... g6 {[%clk 0:02:53.6]} 6. d4 {[%clk 0:02:58.1]} 6... cxd4 {[%clk 0:02:51.8]}
7. Qxd4 {[%clk 0:02:48]} 7... Bg7 {[%clk 0:02:43.2]} 8. Nc3 {[%clk 0:02:39.1]}
8... O-O {[%clk 0:02:30.3]} 9. O-O-O {[%clk 0:02:20.6]} 9... Ne4 {[%clk
0:02:21.2]} 10. Qxg7+ {[%clk 0:02:01.9]} 10... Kxg7 {[%clk 0:02:17.4]} 11. Nxe4+
{[%clk 0:02:02.5]} 11... Nf6 {[%clk 0:02:03.5]} 12. Nxf6 {[%clk 0:01:59]} 12...
exf6 {[%clk 0:02:03.8]} 13. Rd2 {[%clk 0:01:33.1]} 13... Be6 {[%clk 0:01:58]}
14. Rhd1 {[%clk 0:01:32.6]} 14... Qa5 {[%clk 0:01:56.3]} 15. a4 {[%clk
0:01:25.4]} 15... a6 {[%clk 0:01:53.9]} 16. Be2 {[%clk 0:01:25.9]} 16... b5
{[%clk 0:01:52.6]} 17. axb5 {[%clk 0:01:24]} 17... axb5 {[%clk 0:01:52.8]} 18.
Nd4 {[%clk 0:01:21.9]} 18... b4 {[%clk 0:01:51]} 19. g4 {[%clk 0:01:12]} 19...
h6 {[%clk 0:01:43.7]} 20. h4 {[%clk 0:01:11.2]} 20... g5 {[%clk 0:01:40.2]} 21.
f4 {[%clk 0:01:08.4]} 21... gxh4 {[%clk 0:01:12.5]} 22. g5 {[%clk 0:01:08.5]}
22... hxg5 {[%clk 0:01:06.8]} 23. fxg5 {[%clk 0:01:07.1]} 23... Rg8 {[%clk
0:00:53.9]} 24. Nc6 {[%clk 0:00:46.7]} 24... Qc7 {[%clk 0:00:34.9]} 25. Bxf6+
{[%clk 0:00:30.8]} 25... Kf8 {[%clk 0:00:35.2]} 26. Nxb4 {[%clk 0:00:30.3]}
26... Rxg5 {[%clk 0:00:23.7]} 27. Kb2 {[%clk 0:00:09.7]} 27... Rf5 {[%clk
0:00:16.1]} 28. Bd4 {[%clk 0:00:07.1]} 28... Qa5 {[%clk 0:00:15.2]} 29. Nd3
{[%clk 0:00:03.7]} 29... Qa2+ {[%clk 0:00:10.9]} 30. Kc1 {[%clk 0:00:03.8]}
30... h3 {[%clk 0:00:10.8]} 31. Rh1 {[%clk 0:00:03.4]} 31... Rg5 {[%clk
0:00:10.2]} 32. Nf4 {[%clk 0:00:03.3]} 32... Qa3+ {[%clk 0:00:08.3]} 33. Bb2
{[%clk 0:00:02.5]} 33... Qc5 {[%clk 0:00:08.8]} 34. Nxh3 {[%clk 0:00:02.8]}
34... Rg8 {[%clk 0:00:04.6]} 35. Nf4 {[%clk 0:00:03]} 35... Qxe3 {[%clk
0:00:04.7]} 36. Nxe6+ {[%clk 0:00:03.6]} 36... fxe6 {[%clk 0:00:05.2]} 37. Rf1+
{[%clk 0:00:03.8]} 37... Ke8 {[%clk 0:00:05.5]} 38. Bd3 {[%clk 0:00:04.1]} 38...
Rg2 {[%clk 0:00:05.7]} 39. Rd1 {[%clk 0:00:04.2]} 39... Ke7 {[%clk 0:00:05.3]}
40. Bc3 {[%clk 0:00:04.3]} 40... Rxd2 {[%clk 0:00:05.4]} 41. Kb2 {[%clk
0:00:04.9]} 41... Rxd1 {[%clk 0:00:05.5]} 0-1

[Event "Early-Titled-Tuesday-Blitz-February-13-2024"]
[Site "Chess.com"]
[Date "2024.02.13"]
[Round "3"]
[White "Korchmar_Vasiliy"]
[Black "Zhigalko_Sergei"]
[Result "0-1"]
[WhiteElo "2732"]
[BlackElo "2967"]
[TimeControl "180+1"]
[EndTime "8:32:31 PST"]
[Termination "Zhigalko_Sergei won on time"]

1. e4 {[%clk 0:03:00.9]} 1... c5 {[%clk 0:03:00.1]} 2. d4 {[%clk 0:03:01.6]}
2... cxd4 {[%clk 0:03:00]} 3. Qxd4 {[%clk 0:03:02.5]} 3... Nc6 {[%clk
0:02:58.4]} 4. Qd3 {[%clk 0:03:02.9]} 4... g6 {[%clk 0:02:46.2]} 5. Nc3 {[%clk
0:03:03]} 5... Bg7 {[%clk 0:02:46.6]} 6. Nf3 {[%clk 0:03:03.6]} 6... Nf6 {[%clk
0:02:45.2]} 7. Be2 {[%clk 0:03:04.1]} 7... O-O {[%clk 0:02:44.4]} 8. O-O {[%clk
0:03:04.7]} 8... d6 {[%clk 0:02:44.1]} 9. Nd5 {[%clk 0:03:05.4]} 9... Nd7 {[%clk
0:02:40.7]} 10. c3 {[%clk 0:03:05.8]} 10... b6 {[%clk 0:02:24.8]} 11. Bg5 {[%clk
0:03:04.2]} 11... h6 {[%clk 0:02:21.3]} 12. Bh4 {[%clk 0:03:04.2]} 12... Bb7
{[%clk 0:02:21.2]} 13. Rad1 {[%clk 0:03:01.6]} 13... a6 {[%clk 0:02:10]} 14.
Nxe7+ {[%clk 0:02:29.1]} 14... Nxe7 {[%clk 0:02:10.9]} 15. Qxd6 {[%clk
0:02:29.6]} 15... g5 {[%clk 0:02:04.7]} 16. Qxd7 {[%clk 0:02:23.7]} 16... Bxe4
{[%clk 0:02:02.9]} 17. Qa4 {[%clk 0:02:14.8]} 17... Bd5 {[%clk 0:01:59.7]} 18.
Bg3 {[%clk 0:01:18.5]} 18... Qe8 {[%clk 0:01:53.5]} 19. Qa3 {[%clk 0:01:01.6]}
19... Nf5 {[%clk 0:01:17]} 20. Rfe1 {[%clk 0:00:47.8]} 20... Nxg3 {[%clk
0:01:12.6]} 21. hxg3 {[%clk 0:00:46.5]} 21... Qc6 {[%clk 0:01:12.5]} 22. Nd4
{[%clk 0:00:26.6]} 22... Bxd4 {[%clk 0:00:57.1]} 23. Rxd4 {[%clk 0:00:27.5]}
23... Bxg2 {[%clk 0:00:57.5]} 24. Qd6 {[%clk 0:00:18.3]} 24... Rfe8 {[%clk
0:00:53.9]} 25. Qxc6 {[%clk 0:00:05.9]} 25... Bxc6 {[%clk 0:00:54.8]} 26. Rd6
{[%clk 0:00:04.6]} 26... Bb5 {[%clk 0:00:36.4]} 27. Kf1 {[%clk 0:00:03.7]} 27...
Rxe2 {[%clk 0:00:32.9]} 28. Rxe2 {[%clk 0:00:04.6]} 28... Re8 {[%clk 0:00:33.5]}
29. Rd2 {[%clk 0:00:04.7]} 29... Kg7 {[%clk 0:00:21]} 30. Ke1 {[%clk 0:00:05.1]}
30... Bxe2 {[%clk 0:00:21.9]} 31. Rxe2 {[%clk 0:00:06]} 31... Rxe2+ {[%clk
0:00:11.6]} 32. Kxe2 {[%clk 0:00:06.9]} 32... h5 {[%clk 0:00:12.4]} 33. Ke3
{[%clk 0:00:07.2]} 33... Kf6 {[%clk 0:00:12.3]} 34. Ke4 {[%clk 0:00:07.4]} 34...
Ke6 {[%clk 0:00:12.6]} 35. c4 {[%clk 0:00:07.1]} 35... f5+ {[%clk 0:00:12.4]}
36. Kd4 {[%clk 0:00:04.6]} 36... a5 {[%clk 0:00:13]} 37. b3 {[%clk 0:00:04.4]}
37... h4 {[%clk 0:00:08.5]} 38. gxh4 {[%clk 0:00:04.3]} 38... gxh4 {[%clk
0:00:09.4]} 39. Ke3 {[%clk 0:00:04.7]} 39... h3 {[%clk 0:00:05.3]} 40. Kf3
{[%clk 0:00:04.8]} 40... f4 {[%clk 0:00:05.8]} 41. a3 {[%clk 0:00:04.1]} 41...
Ke5 {[%clk 0:00:04.6]} 42. b4 {[%clk 0:00:03.8]} 42... axb4 {[%clk 0:00:05.5]}
43. axb4 {[%clk 0:00:04.4]} 43... Kd4 {[%clk 0:00:06]} 0-1

[Event "Early-Titled-Tuesday-Blitz-February-13-2024"]
[Site "Chess.com"]
[Date "2024.02.13"]
[Round "3"]
[White "RandomNoob04"]
[Black "m_ezat"]
[Result "1-0"]
[WhiteElo "2617"]
[BlackElo "2429"]
[TimeControl "180+1"]
[EndTime "8:32:31 PST"]
[Termination "RandomNoob04 won on time"]

1. e4 {[%clk 0:03:00.9]} 1... c6 {[%clk 0:02:57.3]} 2. c4 {[%clk 0:03:00.6]}
2... d5 {[%clk 0:02:57.4]} 3. exd5 {[%clk 0:03:01.5]} 3... cxd5 {[%clk
0:02:57.6]} 4. d4 {[%clk 0:03:02.4]} 4... Nf6 {[%clk 0:02:57.1]} 5. Nc3 {[%clk
0:03:02.6]} 5... g6 {[%clk 0:02:56.8]} 6. Nf3 {[%clk 0:03:02.6]} 6... Bg7 {[%clk
0:02:56]} 7. cxd5 {[%clk 0:03:03.2]} 7... O-O {[%clk 0:02:49.8]} 8. Bc4 {[%clk
0:03:02.9]} 8... Na6 {[%clk 0:02:32.2]} 9. O-O {[%clk 0:03:01.7]} 9... Nc7
{[%clk 0:02:32.3]} 10. Qb3 {[%clk 0:02:53.6]} 10... a6 {[%clk 0:02:30.9]} 11. a4
{[%clk 0:02:53.5]} 11... b5 {[%clk 0:02:31.1]} 12. axb5 {[%clk 0:02:00.7]} 12...
axb5 {[%clk 0:02:13.4]} 13. Rxa8 {[%clk 0:02:01.6]} 13... bxc4 {[%clk
0:02:12.2]} 14. Qb8 {[%clk 0:02:01.3]} 14... Nxa8 {[%clk 0:02:08.4]} 15. Qxa8
{[%clk 0:02:02.2]} 15... Bf5 {[%clk 0:01:47.1]} 16. Qxd8 {[%clk 0:01:51.1]}
16... Rxd8 {[%clk 0:01:45.9]} 17. Ne5 {[%clk 0:01:52]} 17... Kf8 {[%clk
0:01:26.6]} 18. Bg5 {[%clk 0:01:16.9]} 18... Rb8 {[%clk 0:01:14.1]} 19. Bxf6
{[%clk 0:01:15.6]} 19... Bxf6 {[%clk 0:01:09.5]} 20. Nxc4 {[%clk 0:01:10.7]}
20... Bd3 {[%clk 0:01:07.8]} 21. Ne5 {[%clk 0:01:03.4]} 21... Bxf1 {[%clk
0:01:07.2]} 22. Nd7+ {[%clk 0:01:03.3]} 22... Ke8 {[%clk 0:00:54.3]} 23. Nxb8
{[%clk 0:01:04.2]} 23... Bc4 {[%clk 0:00:50.3]} 24. Nc6 {[%clk 0:01:03.4]} 24...
Bg5 {[%clk 0:00:45.2]} 25. Ne5 {[%clk 0:00:30.8]} 25... Bb3 {[%clk 0:00:43.7]}
26. Nd3 {[%clk 0:00:26.2]} 26... Bc4 {[%clk 0:00:40.4]} 27. Nc5 {[%clk
0:00:22.9]} 27... Bf6 {[%clk 0:00:32.3]} 28. b3 {[%clk 0:00:19.4]} 28... Bxd4
{[%clk 0:00:17.9]} 29. bxc4 {[%clk 0:00:20.3]} 29... Bxc5 {[%clk 0:00:16.6]} 30.
Kf1 {[%clk 0:00:20.9]} 30... Bd6 {[%clk 0:00:14.4]} 31. g3 {[%clk 0:00:19.9]}
31... h5 {[%clk 0:00:14.6]} 32. Ke2 {[%clk 0:00:20.2]} 32... h4 {[%clk
0:00:14.6]} 33. Kd3 {[%clk 0:00:20.5]} 33... h3 {[%clk 0:00:14.3]} 34. Ne4
{[%clk 0:00:20]} 34... Bb4 {[%clk 0:00:13.9]} 35. c5 {[%clk 0:00:19.8]} 35... f6
{[%clk 0:00:13.1]} 36. Kc4 {[%clk 0:00:19.5]} 36... Ba5 {[%clk 0:00:12.4]} 37.
Kb5 {[%clk 0:00:20]} 37... Be1 {[%clk 0:00:12.2]} 38. c6 {[%clk 0:00:12.5]}
38... f5 {[%clk 0:00:11.1]} 39. Kb6 {[%clk 0:00:09.5]} 39... fxe4 {[%clk
0:00:05.7]} 40. c7 {[%clk 0:00:09.6]} 40... Bxf2+ {[%clk 0:00:02.2]} 41. Kb7
{[%clk 0:00:09.5]} 41... Bxg3 {[%clk 0:00:01.8]} 42. c8=Q+ {[%clk 0:00:10.4]}
42... Kf7 {[%clk 0:00:01.9]} 43. hxg3 {[%clk 0:00:09.9]} 43... h2 {[%clk
0:00:02.4]} 44. Qh3 {[%clk 0:00:10.4]} 44... e3 {[%clk 0:00:03.2]} 45. Qxh2
{[%clk 0:00:10.9]} 1-0

[Event "Early-Titled-Tuesday-Blitz-February-13-2024"]
[Site "Chess.com"]
[Date "2024.02.13"]
[Round "3"]
[White "SidArun"]
[Black "Atousa"]
[Result "1-0"]
[WhiteElo "2271"]
[BlackElo "2507"]
[TimeControl "180+1"]
[EndTime "8:32:33 PST"]
[Termination "SidArun won by resignation"]

1. d4 {[%clk 0:02:33.3]} 1... Nf6 {[%clk 0:02:57.2]} 2. Nc3 {[%clk 0:02:32.6]}
2... d5 {[%clk 0:02:56.3]} 3. Bf4 {[%clk 0:02:32.2]} 3... e6 {[%clk 0:02:52.8]}
4. Nb5 {[%clk 0:02:28.6]} 4... Bd6 {[%clk 0:02:50.2]} 5. Nxd6+ {[%clk
0:02:28.2]} 5... cxd6 {[%clk 0:02:50.9]} 6. e3 {[%clk 0:02:28.6]} 6... O-O
{[%clk 0:02:50.8]} 7. Nf3 {[%clk 0:02:28.9]} 7... Nc6 {[%clk 0:02:51.6]} 8. h3
{[%clk 0:02:28.9]} 8... Re8 {[%clk 0:02:52.2]} 9. Bh2 {[%clk 0:02:29.1]} 9... e5
{[%clk 0:02:52.6]} 10. Be2 {[%clk 0:02:28.4]} 10... Bf5 {[%clk 0:02:52.1]} 11.
c3 {[%clk 0:02:27.6]} 11... Ne4 {[%clk 0:02:37.3]} 12. O-O {[%clk 0:02:21.1]}
12... Qd7 {[%clk 0:02:31.6]} 13. Nd2 {[%clk 0:01:58.7]} 13... Nf6 {[%clk
0:02:15.2]} 14. g4 {[%clk 0:01:52.4]} 14... Bg6 {[%clk 0:02:12.3]} 15. f4 {[%clk
0:01:51.8]} 15... exf4 {[%clk 0:02:07.8]} 16. exf4 {[%clk 0:01:52]} 16... Be4
{[%clk 0:02:06.4]} 17. f5 {[%clk 0:01:41.8]} 17... h6 {[%clk 0:01:56.6]} 18. Bf4
{[%clk 0:01:32.1]} 18... Bc2 {[%clk 0:01:49.7]} 19. Qxc2 {[%clk 0:01:19.4]}
19... Rxe2 {[%clk 0:01:49.4]} 20. Rae1 {[%clk 0:01:10.5]} 20... Rae8 {[%clk
0:01:49.4]} 21. Rxe2 {[%clk 0:01:10.9]} 21... Rxe2 {[%clk 0:01:50.1]} 22. Qd3
{[%clk 0:01:11.1]} 22... Qe7 {[%clk 0:01:48.1]} 23. Bxd6 {[%clk 0:01:01]} 23...
Rxd2 {[%clk 0:01:42.2]} 24. Qxd2 {[%clk 0:00:57.2]} 24... Qxd6 {[%clk
0:01:42.7]} 25. Qh2 {[%clk 0:00:56.8]} 25... Qe7 {[%clk 0:01:39.4]} 26. Qf4
{[%clk 0:00:52.3]} 26... a6 {[%clk 0:01:08.4]} 27. h4 {[%clk 0:00:52]} 27... Qe2
{[%clk 0:01:00.3]} 28. g5 {[%clk 0:00:40.1]} 28... Nh5 {[%clk 0:00:36.6]} 29.
Qf3 {[%clk 0:00:36.7]} 29... Qxf3 {[%clk 0:00:27.7]} 30. Rxf3 {[%clk 0:00:36.8]}
30... Ne7 {[%clk 0:00:19.5]} 31. Kg2 {[%clk 0:00:29.5]} 31... g6 {[%clk
0:00:18.6]} 32. f6 {[%clk 0:00:20.4]} 32... Nf5 {[%clk 0:00:18.6]} 33. Kh3
{[%clk 0:00:19.1]} 33... hxg5 {[%clk 0:00:15.1]} 34. hxg5 {[%clk 0:00:18.5]}
34... Kf8 {[%clk 0:00:15.6]} 35. Kg4 {[%clk 0:00:16.8]} 35... Ke8 {[%clk
0:00:07.5]} 36. Rxf5 {[%clk 0:00:09.3]} 36... gxf5+ {[%clk 0:00:08.4]} 37. Kxh5
{[%clk 0:00:09.6]} 37... Kd7 {[%clk 0:00:09.2]} 38. Kh4 {[%clk 0:00:10.1]} 38...
Ke6 {[%clk 0:00:08.2]} 39. Kg3 {[%clk 0:00:10.3]} 39... b5 {[%clk 0:00:06.9]}
40. Kf4 {[%clk 0:00:10.2]} 40... a5 {[%clk 0:00:07.4]} 41. b3 {[%clk 0:00:08.3]}
41... a4 {[%clk 0:00:07.4]} 42. bxa4 {[%clk 0:00:08.6]} 42... bxa4 {[%clk
0:00:07.8]} 43. a3 {[%clk 0:00:09.2]} 43... Kd6 {[%clk 0:00:07.4]} 44. Kxf5
{[%clk 0:00:09.7]} 44... Kd7 {[%clk 0:00:08]} 45. g6 {[%clk 0:00:10.1]} 45...
fxg6+ {[%clk 0:00:08.3]} 46. Kxg6 {[%clk 0:00:10.7]} 46... Ke8 {[%clk
0:00:09.1]} 47. Kg7 {[%clk 0:00:11]} 47... Kd7 {[%clk 0:00:10]} 48. f7 {[%clk
0:00:11.5]} 48... Ke6 {[%clk 0:00:10.9]} 49. f8=Q {[%clk 0:00:11.8]} 49... Kd7
{[%clk 0:00:10.5]} 50. Qc5 {[%clk 0:00:11.9]} 50... Ke6 {[%clk 0:00:10.7]} 51.
Qc6+ {[%clk 0:00:12]} 51... Kf5 {[%clk 0:00:11.5]} 52. Qxd5+ {[%clk 0:00:11.7]}
52... Kf4 {[%clk 0:00:12.4]} 53. Qe5+ {[%clk 0:00:11.6]} 53... Kf3 {[%clk
0:00:12.5]} 54. d5 {[%clk 0:00:12.2]} 54... Kf2 {[%clk 0:00:13.4]} 55. d6 {[%clk
0:00:12.5]} 55... Kf1 {[%clk 0:00:14.3]} 56. d7 {[%clk 0:00:12.9]} 1-0

[Event "Early-Titled-Tuesday-Blitz-February-13-2024"]
[Site "Chess.com"]
[Date "2024.02.13"]
[Round "3"]
[White "SashaKuzhilniy"]
[Black "egnfanclub"]
[Result "1/2-1/2"]
[WhiteElo "2593"]
[BlackElo "2360"]
[TimeControl "180+1"]
[EndTime "8:32:34 PST"]
[Termination "Game drawn by repetition"]

1. e4 {[%clk 0:03:00.5]} 1... e5 {[%clk 0:02:59.2]} 2. Nf3 {[%clk 0:02:59.9]}
2... Nc6 {[%clk 0:02:59.3]} 3. Nc3 {[%clk 0:02:57]} 3... Nf6 {[%clk 0:02:58.9]}
4. h3 {[%clk 0:02:55.9]} 4... d5 {[%clk 0:02:58.1]} 5. exd5 {[%clk 0:02:53.1]}
5... Nxd5 {[%clk 0:02:59]} 6. Bb5 {[%clk 0:02:52.8]} 6... Nxc3 {[%clk
0:02:59.2]} 7. bxc3 {[%clk 0:02:53.7]} 7... Bd6 {[%clk 0:02:59.4]} 8. O-O {[%clk
0:02:52.5]} 8... O-O {[%clk 0:02:58.2]} 9. d4 {[%clk 0:02:49.2]} 9... exd4
{[%clk 0:02:53.2]} 10. cxd4 {[%clk 0:02:48.3]} 10... a6 {[%clk 0:02:48.6]} 11.
Bd3 {[%clk 0:02:45.3]} 11... Ne7 {[%clk 0:02:48.6]} 12. c4 {[%clk 0:02:43.9]}
12... c6 {[%clk 0:02:41.8]} 13. Re1 {[%clk 0:02:40]} 13... Ng6 {[%clk
0:02:14.9]} 14. Qc2 {[%clk 0:02:27.9]} 14... Re8 {[%clk 0:01:57.8]} 15. Bg5
{[%clk 0:02:19.5]} 15... Qd7 {[%clk 0:01:39.9]} 16. Rxe8+ {[%clk 0:02:06]} 16...
Qxe8 {[%clk 0:01:40.8]} 17. Re1 {[%clk 0:02:05.7]} 17... Qf8 {[%clk 0:01:36.8]}
18. Ne5 {[%clk 0:01:19.2]} 18... Be6 {[%clk 0:01:17.3]} 19. Nxg6 {[%clk
0:01:13.9]} 19... hxg6 {[%clk 0:01:13.2]} 20. Bxg6 {[%clk 0:01:14]} 20... Re8
{[%clk 0:00:45.2]} 21. Bh7+ {[%clk 0:01:12.4]} 21... Kh8 {[%clk 0:00:45.1]} 22.
Bd3 {[%clk 0:01:12.9]} 22... f6 {[%clk 0:00:41.9]} 23. Bd2 {[%clk 0:01:01.4]}
23... Bf7 {[%clk 0:00:41.5]} 24. Qd1 {[%clk 0:00:55.4]} 24... Rxe1+ {[%clk
0:00:40.5]} 25. Qxe1 {[%clk 0:00:56.3]} 25... Qe8 {[%clk 0:00:38.7]} 26. Qxe8+
{[%clk 0:00:46]} 26... Bxe8 {[%clk 0:00:39.6]} 27. c5 {[%clk 0:00:45.2]} 27...
Bc7 {[%clk 0:00:38.9]} 28. Bf5 {[%clk 0:00:42.4]} 28... b6 {[%clk 0:00:35.2]}
29. Bb4 {[%clk 0:00:38.2]} 29... a5 {[%clk 0:00:34.9]} 30. cxb6 {[%clk
0:00:37.5]} 30... Bxb6 {[%clk 0:00:34]} 31. Bc5 {[%clk 0:00:38.1]} 31... Bc7
{[%clk 0:00:32.7]} 32. g4 {[%clk 0:00:34.7]} 32... Bf7 {[%clk 0:00:33]} 33. a3
{[%clk 0:00:34.1]} 33... Bd5 {[%clk 0:00:33.3]} 34. Kf1 {[%clk 0:00:32.7]} 34...
Kg8 {[%clk 0:00:33.9]} 35. h4 {[%clk 0:00:31.4]} 35... Kf7 {[%clk 0:00:34.4]}
36. h5 {[%clk 0:00:32]} 36... Bf3 {[%clk 0:00:32.7]} 37. Ke1 {[%clk 0:00:27.8]}
37... Bd8 {[%clk 0:00:27.7]} 38. Kd2 {[%clk 0:00:26.2]} 38... Bd5 {[%clk
0:00:23.8]} 39. Ke3 {[%clk 0:00:26.1]} 39... Bc7 {[%clk 0:00:24]} 40. Be4 {[%clk
0:00:22.1]} 40... Ke6 {[%clk 0:00:23]} 41. f4 {[%clk 0:00:21.3]} 41... Bd8
{[%clk 0:00:20.5]} 42. f5+ {[%clk 0:00:18.5]} 42... Kf7 {[%clk 0:00:20.6]} 43.
Bxd5+ {[%clk 0:00:18.9]} 43... cxd5 {[%clk 0:00:21.4]} 44. a4 {[%clk 0:00:19.5]}
44... Bc7 {[%clk 0:00:20.9]} 45. Kd3 {[%clk 0:00:17.4]} 45... Ke8 {[%clk
0:00:19.3]} 46. Ke3 {[%clk 0:00:17.1]} 46... Kf7 {[%clk 0:00:19.4]} 47. Kf3
{[%clk 0:00:17.6]} 47... Bd8 {[%clk 0:00:19.2]} 48. Bd6 {[%clk 0:00:16.4]} 48...
Bb6 {[%clk 0:00:19.5]} 49. Ke3 {[%clk 0:00:16.4]} 49... Ke8 {[%clk 0:00:19.6]}
50. Ba3 {[%clk 0:00:15.8]} 50... Bc7 {[%clk 0:00:19.3]} 51. Kf3 {[%clk
0:00:15.1]} 51... Kf7 {[%clk 0:00:19.4]} 52. Bc1 {[%clk 0:00:15.3]} 52... Ke8
{[%clk 0:00:19.2]} 53. Bf4 {[%clk 0:00:15.1]} 53... Bb6 {[%clk 0:00:19.1]} 54.
Ke3 {[%clk 0:00:15.7]} 54... Ke7 {[%clk 0:00:18.5]} 55. Bb8 {[%clk 0:00:15.5]}
55... Bd8 {[%clk 0:00:18.4]} 56. Ba7 {[%clk 0:00:15]} 56... Bc7 {[%clk
0:00:18.2]} 57. Bc5+ {[%clk 0:00:15.1]} 57... Kf7 {[%clk 0:00:17.8]} 1/2-1/2